[Event "Djerba Festival Open-B 2025"]
[Site "Djerba"]
[Date "2025.02.17"]
[Round "2.19"]
[White "Kole, Arda"]
[Black "Chaudesaygues, Hugo"]
[Result "1-0"]
[Annotator "NA"]
[ECO "C54"]
[WhiteElo "1848"]
[BlackElo "1624"]
[PlyCount "37"]
[EventDate "2025.02.15"]
[EventType "swiss"]
[EventCountry "TUN"]
[SourceTitle "playchess.com"]
[Source "ChessBase"]
[SourceQuality "1"]
[TimeControl "5400+30"]

1. e4 {[%emt 0:00:03]} e5 {[%emt 0:00:08]} 2. Nf3 {[%emt 0:00:18]} Nc6 {[%emt 0:00:07]} 3. Bc4 {[%emt 0:00:35]} Bc5 {[%emt 0:00:10]} 4. c3 {[%emt 0:00:12]} Nf6 {[%emt 0:00:34]} 5. d3 {[%emt 0:00:29]} d6 {[%emt 0:00:46]} 6. a4 {[%emt 0:00:38]} a5 {[%emt 0:00:37]} 7. O-O {[%emt 0:01:35]} Ne7 {[%emt 0:00:32]} 8. Bg5 {[%emt 0:06:37]} Ng6 {[%emt 0:01:35]} 9. d4 {[%emt 0:05:57]} exd4 {[%emt 0:03:20]} 10. cxd4 {[%emt 0:00:07]} Bb4 {[%emt 0:03:03]} 11. Qb3 {[%emt 0:03:05]} Qd7 {[%emt 0:03:04]} 12. e5 {[%emt 0:03:38]} Ne4 {[%emt 0:03:06]} 13. Nc3 {[%emt 0:01:21]} Nxg5 {[%emt 0:03:41]} 14. Nxg5 {[%emt 0:00:18]} O-O {[%emt 0:09:58]} 15. Bxf7+ {[%emt 0:07:36]} Kh8 {[%emt 0:02:43]} 16. Bxg6 {[%emt 0:00:54]} hxg6 {[%emt 0:01:16]} 17. e6 {[%emt 0:00:12]} Qe7 {[%emt 0:01:49]} 18. Nce4 {[%emt 0:00:22]} Rf5 {[%emt 0:03:03]} 19. Qh3+ {[%emt 0:00:12]} 1-0

[Event "Djerba Festival Open-B 2025"]
[Site "Djerba"]
[Date "2025.02.17"]
[Round "2.20"]
[White "Minde, Heloise"]
[Black "Louvrier Saint-Mary, Jean-Roger"]
[Result "0-1"]
[Annotator "NA"]
[ECO "B23"]
[WhiteElo "1600"]
[BlackElo "1839"]
[PlyCount "120"]
[EventDate "2025.02.15"]
[EventType "swiss"]
[EventCountry "TUN"]
[SourceTitle "playchess.com"]
[Source "ChessBase"]
[SourceQuality "1"]
[TimeControl "5400+30"]

1. e4 {[%emt 0:00:02]} c5 {[%emt 0:01:59]} 2. Nc3 {[%emt 0:00:08]} e6 {[%emt 0:01:19]} 3. f4 {[%emt 0:01:13]} Nc6 {[%emt 0:01:46]} 4. Nf3 {[%emt 0:03:27]} b6 {[%emt 0:03:03]} 5. Bc4 {[%emt 0:02:25]} Na5 {[%emt 0:00:43]} 6. Bb5 {[%emt 0:01:40]} a6 {[%emt 0:00:09]} 7. Be2 {[%emt 0:01:48]} Nc6 {[%emt 0:03:34]} 8. d4 {[%emt 0:02:01]} cxd4 {[%emt 0:01:10]} 9. Nxd4 {[%emt 0:00:54]} Nxd4 {[%emt 0:00:56]} 10. Qxd4 {[%emt 0:00:48]} Nf6 {[%emt 0:00:02]} 11. e5 {[%emt 0:02:05]} Bc5 {[%emt 0:00:15]} 12. Qd3 {[%emt 0:01:33]} Ng8 {[%emt 0:02:25]} 13. Bf3 {[%emt 0:01:33]} Rb8 {[%emt 0:01:39]} 14. Bd2 {[%emt 0:01:37]} d5 {[%emt 0:03:49]} 15. exd6 {[%emt 0:03:54]} Nf6 {[%emt 0:01:53]} 16. O-O-O {[%emt 0:01:00]} Qxd6 {[%emt 0:09:09]} 17. Be3 {[%emt 0:02:35]} Qxd3 {[%emt 0:04:14]} 18. Rxd3 {[%emt 0:00:19]} Bxe3+ {[%emt 0:00:06]} 19. Rxe3 {[%emt 0:02:33]} Bb7 {[%emt 0:00:12]} 20. Bxb7 {[%emt 0:02:16]} Rxb7 {[%emt 0:00:08]} 21. Rd1 {[%emt 0:00:53]} O-O {[%emt 0:00:49]} 22. Rd6 {[%emt 0:03:19]} Rc8 {[%emt 0:01:28]} 23. Na4 {[%emt 0:00:50]} Nd5 {[%emt 0:02:49]} 24. Re4 {[%emt 0:01:39]} g6 {[%emt 0:01:00]} 25. b3 {[%emt 0:00:52]} b5 {[%emt 0:01:49]} 26. Nb2 {[%emt 0:00:19]} Nc3 {[%emt 0:00:19]} 27. Re3 {[%emt 0:00:27]} Nxa2+ {[%emt 0:00:08]} 28. Kb1 {[%emt 0:01:15]} Nb4 {[%emt 0:00:50]} 29. Re2 {[%emt 0:01:06]} Nd5 {[%emt 0:00:17]} 30. Rf2 {[%emt 0:00:42]} Nc3+ {[%emt 0:00:02]} 31. Kc1 {[%emt 0:00:27]} Ne4 {[%emt 0:00:02]} 32. Rfd2 {[%emt 0:00:36]} Nxd2 {[%emt 0:00:52]} 33. Rxd2 {[%emt 0:00:12]} Rbc7 {[%emt 0:00:27]} 34. g3 {[%emt 0:01:16]} a5 {[%emt 0:00:39]} 35. Kd1 {[%emt 0:01:00]} Kf8 {[%emt 0:00:30]} 36. Kc1 {[%emt 0:01:47]} Ke7 {[%emt 0:01:32]} 37. Kd1 {[%emt 0:00:17]} h5 {[%emt 0:01:52]} 38. Nd3 {[%emt 0:00:54]} f6 {[%emt 0:00:20]} 39. Kc1 {[%emt 0:01:01]} a4 {[%emt 0:01:37]} 40. Kb2 {[%emt 0:00:21]} axb3 {[%emt 0:01:31]} 41. cxb3 {[%emt 0:00:18]} Rd8 {[%emt 0:00:30]} 42. b4 {[%emt 0:00:44]} Rcd7 {[%emt 0:00:11]} 43. Kc2 {[%emt 0:00:19]} Kf7 {[%emt 0:01:04]} 44. Rd1 {[%emt 0:00:28]} Rd4 {[%emt 0:01:46]} 45. Kc3 {[%emt 0:00:42]} Kg7 {[%emt 0:01:15]} 46. h3 {[%emt 0:00:16]} e5 {[%emt 0:00:45]} 47. fxe5 {[%emt 0:00:36]} fxe5 {[%emt 0:00:08]} 48. Kc2 {[%emt 0:00:11]} e4 {[%emt 0:01:00]} 49. Nf2 {[%emt 0:00:32]} Rxd1 {[%emt 0:00:17]} 50. Nxd1 {[%emt 0:00:11]} Rd4 {[%emt 0:00:01]} 51. h4 {[%emt 0:01:02]} Rxb4 {[%emt 0:01:08]} 52. Nc3 {[%emt 0:00:10]} Rc4 {[%emt 0:00:06]} 53. Kb3 {[%emt 0:00:41]} e3 {[%emt 0:00:50]} 54. Kb2 {[%emt 0:01:04]} Rg4 {[%emt 0:00:14]} 55. Ne2 {[%emt 0:00:20]} Kf6 {[%emt 0:00:09]} 56. Kc3 {[%emt 0:00:24]} b4+ {[%emt 0:00:25]} 57. Kb3 {[%emt 0:00:21]} Ke5 {[%emt 0:00:01]} 58. Kc2 {[%emt 0:00:36]} Ke4 {[%emt 0:00:16]} 59. Nf4 {[%emt 0:00:33]} Rxf4 {[%emt 0:00:14]} 60. gxf4 {[%emt 0:00:10]} Kxf4 {[%emt 0:00:12]} 0-1

[Event "Djerba Festival Open-B 2025"]
[Site "Djerba"]
[Date "2025.02.17"]
[Round "2.21"]
[White "Zerarga, Imene"]
[Black "Hinard, Jeremy"]
[Result "1-0"]
[Annotator "NA"]
[ECO "D20"]
[WhiteElo "1831"]
[BlackElo "1609"]
[PlyCount "55"]
[EventDate "2025.02.15"]
[EventType "swiss"]
[EventCountry "TUN"]
[SourceTitle "playchess.com"]
[Source "ChessBase"]
[SourceQuality "1"]
[TimeControl "5400+30"]

1. e4 {[%emt 1:31:00]} c6 {[%emt 1:31:00]} 2. d4 {[%emt 0:00:30]} d5 {[%emt 0:00:30]} 3. exd5 {[%emt 0:00:30]} cxd5 {[%emt 0:00:30]} 4. c4 {[%emt 0:00:30]} dxc4 {[%emt 0:00:30]} 5. Bxc4 {[%emt 0:00:30]} g6 {[%emt 0:00:30]} 6. Nf3 {[%emt 0:00:30]} Bg7 {[%emt 0:00:30]} 7. O-O {[%emt 0:00:30]} Bg4 {[%emt 0:00:30]} 8. Bxf7+ {[%emt 0:00:30]} Kxf7 {[%emt 0:00:30]} 9. Ng5+ {[%emt 0:00:30]} Kf8 {[%emt 0:00:30]} 10. Qxg4 {[%emt 0:00:30]} Qd7 {[%emt 0:00:30]} 11. Qe6 {[%emt 0:00:30]} Nh6 {[%emt 0:00:30]} 12. Re1 {[%emt 0:00:30]} Bf6 {[%emt 0:00:30]} 13. Qxd7 {[%emt 0:00:30]} Nxd7 {[%emt 0:00:30]} 14. Ne6+ {[%emt 0:00:30]} Kf7 {[%emt 0:00:30]} 15. Bxh6 {[%emt 0:00:30]} g5 {[%emt 0:00:30]} 16. Bxg5 {[%emt 0:00:30]} Rhg8 {[%emt 0:00:30]} 17. Bxf6 {[%emt 0:00:30]} Nxf6 {[%emt 0:00:30]} 18. Nc3 {[%emt 0:00:30]} Rg6 {[%emt 0:00:30]} 19. Nf4 {[%emt 0:00:30]} Rg4 {[%emt 0:00:30]} 20. g3 {[%emt 0:00:30]} Rag8 {[%emt 0:00:30]} 21. Kf1 {[%emt 0:00:30]} h5 {[%emt 0:00:30]} 22. Re5 {[%emt 0:00:30]} h4 {[%emt 0:00:30]} 23. Rae1 {[%emt 0:00:30]} Re8 {[%emt 0:00:30]} 24. Nb5 {[%emt 0:00:30]} hxg3 {[%emt 0:00:30]} 25. fxg3 {[%emt 0:00:30]} Rc8 {[%emt 0:00:30]} 26. Rxe7+ {[%emt 0:00:30]} Kg8 {[%emt 0:00:30]} 27. Nc7 {[%emt 0:00:30]} Kf8 28. d5 {[%emt 0:00:30]} 1-0

[Event "Djerba Festival Open-B 2025"]
[Site "Djerba"]
[Date "2025.02.17"]
[Round "2.22"]
[White "Skhiri Youssef"]
[Black "Weslati, Monem"]
[Result "1-0"]
[Annotator "NA"]
[ECO "A31"]
[WhiteElo "1808"]
[BlackElo "1591"]
[PlyCount "38"]
[EventDate "2025.02.15"]
[EventType "swiss"]
[EventCountry "TUN"]
[SourceTitle "playchess.com"]
[Source "ChessBase"]
[SourceQuality "1"]
[TimeControl "5400+30"]

1. c4 {[%emt 1:31:00]} c5 {[%emt 1:31:00]} 2. Nc3 {[%emt 0:00:30]} Nc6 {[%emt 0:00:30]} 3. g3 {[%emt 0:00:30]} g6 {[%emt 0:00:30]} 4. Bg2 {[%emt 0:00:30]} Bg7 {[%emt 0:00:30]} 5. Nf3 {[%emt 0:00:30]} Nf6 {[%emt 0:00:30]} 6. O-O {[%emt 0:00:30]} d6 {[%emt 0:00:30]} 7. d4 {[%emt 0:00:30]} cxd4 {[%emt 0:00:30]} 8. Nxd4 {[%emt 0:00:30]} Bd7 {[%emt 0:00:30]} 9. h3 {[%emt 0:00:30]} Qc8 {[%emt 0:00:30]} 10. Kh2 {[%emt 0:00:30]} Nxd4 {[%emt 0:00:30]} 11. Qxd4 {[%emt 0:00:30]} Ng4+ {[%emt 0:00:30]} 12. Qxg4 {[%emt 0:00:30]} Bxg4 {[%emt 0:00:30]} 13. hxg4 {[%emt 0:00:30]} h5 {[%emt 0:00:30]} 14. g5 {[%emt 0:00:30]} h4 {[%emt 0:00:30]} 15. g4 {[%emt 0:00:30]} Qxg4 {[%emt 0:00:30]} 16. Bxb7 {[%emt 0:00:30]} Rb8 {[%emt 0:00:30]} 17. Bc6+ {[%emt 0:00:30]} Kf8 {[%emt 0:00:30]} 18. Be3 {[%emt 0:00:30]} Be5+ {[%emt 0:00:30]} 19. Kh1 {[%emt 0:00:30]} Qh3+ 1-0

[Event "Djerba Festival Open-B 2025"]
[Site "Djerba"]
[Date "2025.02.17"]
[Round "2.23"]
[White "Girard, Adrien"]
[Black "Ben Mbarek, Mohamed"]
[Result "1-0"]
[Annotator "NA"]
[ECO "B22"]
[WhiteElo "1796"]
[BlackElo "1570"]
[PlyCount "97"]
[EventDate "2025.02.15"]
[EventType "swiss"]
[EventCountry "TUN"]
[SourceTitle "playchess.com"]
[Source "ChessBase"]
[SourceQuality "1"]
[TimeControl "5400+30"]

1. e4 {[%emt 0:00:04]} c5 {[%emt 0:00:03]} 2. c3 {[%emt 0:00:04]} Nf6 {[%emt 0:00:17]} 3. e5 {[%emt 0:00:11]} Nd5 {[%emt 0:00:09]} 4. Nf3 {[%emt 0:00:06]} Nc6 {[%emt 0:00:46]} 5. d4 {[%emt 0:00:32]} d6 {[%emt 0:02:32]} 6. Bb5 {[%emt 0:03:57]} Bd7 {[%emt 0:06:23]} 7. Qe2 {[%emt 0:02:51]} a6 {[%emt 0:04:07]} 8. Ba4 {[%emt 0:02:24]} Nxe5 {[%emt 0:02:45]} 9. Nxe5 {[%emt 0:18:00]} Bxa4 {[%emt 0:01:36]} 10. Qc4 {[%emt 0:03:35]} dxe5 {[%emt 0:04:00]} 11. Qxa4+ {[%emt 0:00:20]} b5 {[%emt 0:00:53]} 12. Qd1 {[%emt 0:00:45]} exd4 {[%emt 0:01:25]} 13. cxd4 {[%emt 0:00:36]} cxd4 {[%emt 0:05:28]} 14. Qxd4 {[%emt 0:01:45]} Rc8 {[%emt 0:05:24]} 15. O-O {[%emt 0:01:34]} Rc4 {[%emt 0:06:01]} 16. Qe5 {[%emt 0:06:15]} Nb4 {[%emt 0:11:27]} 17. Nc3 {[%emt 0:03:45]} Nc6 {[%emt 0:05:34]} 18. Qg3 {[%emt 0:03:18]} Nd4 {[%emt 0:02:26]} 19. Kh1 {[%emt 0:10:26]} g6 {[%emt 0:05:41]} 20. Be3 {[%emt 0:12:22]} Nf5 {[%emt 0:02:22]} 21. Qh3 {[%emt 0:03:44]} Qb8 {[%emt 0:05:17]} 22. f4 {[%emt 0:03:01]} Bh6 {[%emt 0:03:38]} 23. Ne2 {[%emt 0:14:04]} Re4 {[%emt 0:05:41]} 24. Rf3 {[%emt 0:00:53]} Nxe3 {[%emt 0:02:18]} 25. Rxe3 {[%emt 0:00:24]} Rxe3 {[%emt 0:01:23]} 26. Qxe3 {[%emt 0:00:04]} Bg7 {[%emt 0:01:55]} 27. Qd2 {[%emt 0:02:44]} O-O {[%emt 0:00:25]} 28. Rd1 {[%emt 0:00:19]} Qb6 {[%emt 0:01:34]} 29. b3 {[%emt 0:00:52]} Rc8 {[%emt 0:02:55]} 30. h3 {[%emt 0:00:14]} b4 {[%emt 0:02:03]} 31. Qd3 {[%emt 0:02:20]} a5 {[%emt 0:01:19]} 32. Qe4 {[%emt 0:01:01]} Qc5 {[%emt 0:02:31]} 33. Rd5 {[%emt 0:00:36]} Qc2 {[%emt 0:01:33]} 34. Qxe7 {[%emt 0:00:50]} Qxa2 {[%emt 0:00:20]} 35. Qe3 {[%emt 0:01:33]} Rc2 {[%emt 0:02:13]} 36. Rd8+ {[%emt 0:01:18]} Bf8 {[%emt 0:00:07]} 37. Qe8 {[%emt 0:00:11]} Qa1+ {[%emt 0:00:11]} 38. Ng1 {[%emt 0:00:43]} Qg7 {[%emt 0:00:08]} 39. Ra8 {[%emt 0:00:32]} Ra2 {[%emt 0:00:08]} 40. Qd8 {[%emt 0:00:13]} Ra3 {[%emt 0:01:25]} 41. Rxa5 {[%emt 0:01:17]} Rxb3 {[%emt 0:00:13]} 42. Ra8 {[%emt 0:00:08]} Ra3 {[%emt 0:00:14]} 43. Rb8 {[%emt 0:00:05]} b3 {[%emt 0:00:10]} 44. Nf3 {[%emt 0:00:16]} b2 {[%emt 0:01:13]} 45. Kh2 {[%emt 0:01:07]} f5 {[%emt 0:02:36]} 46. Ne5 {[%emt 0:00:29]} Qh6 {[%emt 0:01:00]} 47. Qd5+ {[%emt 0:00:09]} Kg7 {[%emt 0:00:29]} 48. Qf7+ {[%emt 0:00:38]} Kh8 {[%emt 0:00:26]} 49. Rxf8+ {[%emt 0:00:07]} 1-0

[Event "Djerba Festival Open-B 2025"]
[Site "Djerba"]
[Date "2025.02.17"]
[Round "2.24"]
[White "Mallah, Abderrahmane"]
[Black "Azreug, Lazhar"]
[Result "1/2-1/2"]
[Annotator "NA"]
[ECO "B34"]
[WhiteElo "1556"]
[BlackElo "1793"]
[PlyCount "147"]
[EventDate "2025.02.15"]
[EventType "swiss"]
[EventCountry "TUN"]
[SourceTitle "playchess.com"]
[Source "ChessBase"]
[SourceQuality "1"]
[TimeControl "5400+30"]

1. e4 {[%emt 1:31:00]} c5 {[%emt 1:31:00]} 2. Nf3 {[%emt 0:00:30]} Nc6 {[%emt 0:00:30]} 3. Nc3 {[%emt 0:00:30]} g6 {[%emt 0:00:30]} 4. d4 {[%emt 0:00:30]} cxd4 {[%emt 0:00:30]} 5. Nxd4 {[%emt 0:00:30]} Bg7 {[%emt 0:00:30]} 6. Be3 {[%emt 0:00:30]} Nf6 {[%emt 0:00:30]} 7. Be2 {[%emt 0:00:30]} O-O {[%emt 0:00:30]} 8. O-O {[%emt 0:00:30]} d5 {[%emt 0:00:30]} 9. exd5 {[%emt 0:00:30]} Nb4 {[%emt 0:00:30]} 10. Qd2 {[%emt 0:00:30]} Nfxd5 {[%emt 0:00:30]} 11. Nxd5 {[%emt 0:00:30]} Nxd5 {[%emt 0:00:30]} 12. Bh6 {[%emt 0:00:30]} e5 {[%emt 0:00:30]} 13. Bxg7 {[%emt 0:00:30]} Kxg7 {[%emt 0:00:30]} 14. Nb3 {[%emt 0:00:30]} Nf4 {[%emt 0:00:30]} 15. Rad1 {[%emt 0:00:30]} Qxd2 {[%emt 0:00:30]} 16. Rxd2 {[%emt 0:00:30]} Be6 {[%emt 0:00:30]} 17. Bf3 {[%emt 0:00:30]} Rad8 {[%emt 0:00:30]} 18. Rfd1 {[%emt 0:00:30]} Rxd2 {[%emt 0:00:30]} 19. Rxd2 {[%emt 0:00:30]} b6 {[%emt 0:00:30]} 20. g3 {[%emt 0:00:30]} Nh3+ {[%emt 0:00:30]} 21. Kf1 {[%emt 0:00:30]} Kf6 {[%emt 0:00:30]} 22. Bd5 {[%emt 0:00:30]} Bxd5 {[%emt 0:00:30]} 23. Rxd5 {[%emt 0:00:30]} Ke6 {[%emt 0:00:30]} 24. Rd1 {[%emt 0:00:30]} f5 {[%emt 0:00:30]} 25. a4 {[%emt 0:00:30]} Rc8 {[%emt 0:00:30]} 26. c3 {[%emt 0:00:30]} a5 {[%emt 0:00:30]} 27. Ke2 {[%emt 0:00:30]} Rc4 {[%emt 0:00:30]} 28. Rd8 {[%emt 0:00:30]} Rxa4 {[%emt 0:00:30]} 29. Rb8 {[%emt 0:00:30]} Ra2 {[%emt 0:00:30]} 30. Rxb6+ {[%emt 0:00:30]} Kd5 {[%emt 0:00:30]} 31. Nd2 {[%emt 0:00:30]} a4 {[%emt 0:00:30]} 32. Rb5+ {[%emt 0:00:30]} Kc6 {[%emt 0:00:30]} 33. Rb4 {[%emt 0:00:30]} a3 {[%emt 0:00:30]} 34. bxa3 {[%emt 0:00:30]} Rxa3 {[%emt 0:00:30]} 35. Nc4 {[%emt 0:00:30]} Rxc3 {[%emt 0:00:30]} 36. Nxe5+ {[%emt 0:00:30]} Kd6 {[%emt 0:00:30]} 37. Nd3 {[%emt 0:00:30]} Ng5 {[%emt 0:00:30]} 38. Rd4+ {[%emt 0:00:30]} Ke7 {[%emt 0:00:30]} 39. Nf4 {[%emt 0:00:30]} Rc2+ {[%emt 0:00:30]} 40. Rd2 {[%emt 0:00:30]} Rxd2+ {[%emt 0:00:30]} 41. Kxd2 {[%emt 0:00:30]} Nf3+ {[%emt 0:00:30]} 42. Ke3 {[%emt 0:00:30]} Nxh2 43. f3 {[%emt 0:00:30]} g5 {[%emt 0:01:00]} 44. Ne2 {[%emt 0:00:30]} g4 {[%emt 0:00:30]} 45. fxg4 {[%emt 0:00:30]} Nxg4+ {[%emt 0:00:30]} 46. Kf4 {[%emt 0:00:30]} Kf6 {[%emt 0:00:30]} 47. Nd4 {[%emt 0:00:30]} Nh6 {[%emt 0:00:30]} 48. Nf3 {[%emt 0:00:30]} Ng4 {[%emt 0:00:30]} 49. Nh4 {[%emt 0:00:30]} Nh6 {[%emt 0:00:30]} 50. Nf3 {[%emt 0:00:30]} Ng8 {[%emt 0:00:30]} 51. g4 {[%emt 0:00:30]} Ne7 {[%emt 0:00:30]} 52. gxf5 {[%emt 0:00:30]} Nxf5 {[%emt 0:00:30]} 53. Kg4 {[%emt 0:00:30]} Ng7 {[%emt 0:00:30]} 54. Nh4 {[%emt 0:00:30]} h5+ {[%emt 0:00:30]} 55. Kg3 {[%emt 0:00:30]} Kg5 {[%emt 0:00:30]} 56. Nf3+ {[%emt 0:00:30]} Kg6 {[%emt 0:00:30]} 57. Ne5+ {[%emt 0:00:30]} Kf6 {[%emt 0:00:30]} 58. Ng4+ {[%emt 0:00:30]} Kg5 {[%emt 0:00:30]} 59. Ne3 {[%emt 0:00:30]} Ne6 {[%emt 0:00:30]} 60. Ng2 {[%emt 0:00:30]} Nd4 {[%emt 0:00:30]} 61. Ne3 {[%emt 0:00:30]} Ne2+ {[%emt 0:00:30]} 62. Kf2 {[%emt 0:00:30]} Nf4 {[%emt 0:00:30]} 63. Ng2 {[%emt 0:00:30]} Nd5 {[%emt 0:00:30]} 64. Kg3 {[%emt 0:00:30]} Nf6 {[%emt 0:00:30]} 65. Nf4 {[%emt 0:00:30]} Ne4+ {[%emt 0:00:30]} 66. Kf3 {[%emt 0:00:30]} Nd2+ {[%emt 0:00:30]} 67. Kg3 {[%emt 0:00:30]} Ne4+ {[%emt 0:00:30]} 68. Kf3 {[%emt 0:00:30]} Nd2+ {[%emt 0:00:30]} 69. Kg3 {[%emt 0:00:30]} h4+ {[%emt 0:00:30]} 70. Kh3 {[%emt 0:00:30]} Ne4 {[%emt 0:00:30]} 71. Ne6+ {[%emt 0:00:30]} Kh5 {[%emt 0:00:30]} 72. Nf4+ {[%emt 0:00:30]} Kg5 {[%emt 0:00:30]} 73. Ne6+ {[%emt 0:00:30]} Kf5 {[%emt 0:00:30]} 74. Kxh4 {[%emt 0:00:30]} 1/2-1/2

[Event "Djerba Festival Open-B 2025"]
[Site "Djerba"]
[Date "2025.02.17"]
[Round "2.25"]
[White "Banat, Rizlene"]
[Black "Feurprier, Matteo"]
[Result "1-0"]
[Annotator "NA"]
[ECO "C20"]
[WhiteElo "1785"]
[BlackElo "1537"]
[PlyCount "95"]
[EventDate "2025.02.15"]
[EventType "swiss"]
[EventCountry "TUN"]
[SourceTitle "playchess.com"]
[Source "ChessBase"]
[SourceQuality "1"]
[TimeControl "5400+30"]

1. e4 {[%emt 0:00:03]} e5 {[%emt 0:00:07]} 2. c4 {[%emt 0:00:12]} Bc5 {[%emt 0:00:30]} 3. d3 {[%emt 0:00:29]} Nc6 {[%emt 0:00:09]} 4. Nf3 {[%emt 0:00:31]} d6 {[%emt 0:00:08]} 5. Nc3 {[%emt 0:00:18]} Nf6 {[%emt 0:01:10]} 6. h3 {[%emt 0:02:49]} h6 {[%emt 0:00:33]} 7. Be3 {[%emt 0:00:55]} Bb6 {[%emt 0:00:55]} 8. Be2 {[%emt 0:04:00]} O-O {[%emt 0:00:11]} 9. O-O {[%emt 0:00:42]} Be6 {[%emt 0:01:11]} 10. Nd5 {[%emt 0:09:04]} Nd7 {[%emt 0:02:35]} 11. Nxb6 {[%emt 0:00:44]} Nxb6 {[%emt 0:00:33]} 12. Qd2 {[%emt 0:03:19]} f5 {[%emt 0:02:22]} 13. exf5 {[%emt 0:05:49]} Bxf5 {[%emt 0:00:39]} 14. d4 {[%emt 0:00:58]} e4 {[%emt 0:03:05]} 15. Nh2 {[%emt 0:03:27]} Qh4 {[%emt 0:08:09]} 16. b3 {[%emt 0:05:17]} Nd7 {[%emt 0:02:20]} 17. Bg4 {[%emt 0:03:46]} Ne7 {[%emt 0:01:57]} 18. d5 {[%emt 0:06:08]} Ne5 {[%emt 0:03:36]} 19. Bxf5 {[%emt 0:02:39]} Rxf5 {[%emt 0:00:30]} 20. Bd4 {[%emt 0:03:57]} Raf8 {[%emt 0:02:53]} 21. Bxe5 {[%emt 0:03:51]} Rxe5 {[%emt 0:01:10]} 22. Rae1 {[%emt 0:03:21]} Rg5 {[%emt 0:01:35]} 23. Ng4 {[%emt 0:05:58]} Ng6 {[%emt 0:02:37]} 24. Rxe4 {[%emt 0:00:40]} Qh5 {[%emt 0:01:27]} 25. Rfe1 {[%emt 0:34:03]} Ne5 {[%emt 0:01:10]} 26. Nxe5 {[%emt 0:00:00]} dxe5 {[%emt 0:03:58]} 27. Kh2 {[%emt 0:00:00]} Qg6 {[%emt 0:17:05]} 28. f3 {[%emt 0:00:00]} Qf6 {[%emt 0:05:10]} 29. Qe3 {[%emt 0:00:00]} Qa6 {[%emt 0:02:49]} 30. Re2 {[%emt 0:00:00]} Qd6 {[%emt 0:34:56]} 31. Qxa7 {[%emt 0:00:00]} b6 {[%emt 0:00:00]} 32. Qa4 {[%emt 0:00:00]} Rff5 {[%emt 0:00:00]} 33. Qc6 {[%emt 0:00:00]} Qxc6 {[%emt 0:00:00]} 34. dxc6 {[%emt 0:00:00]} Kf7 {[%emt 0:00:00]} 35. b4 {[%emt 0:00:00]} Ke6 {[%emt 0:00:00]} 36. Rd2 {[%emt 0:00:00]} Rf7 {[%emt 0:00:00]} 37. Rd5 {[%emt 0:00:00]} b5 {[%emt 0:00:00]} 38. Rxb5 {[%emt 0:00:00]} Kd6 {[%emt 0:00:00]} 39. Rd5+ {[%emt 0:00:00]} Kxc6 {[%emt 0:00:00]} 40. Rdxe5 {[%emt 0:00:00]} Rxe5 {[%emt 0:00:00]} 41. Rxe5 {[%emt 0:00:00]} Rf4 {[%emt 0:00:00]} 42. Re4 {[%emt 0:00:00]} Rf7 {[%emt 0:00:00]} 43. a4 {[%emt 0:00:00]} Kb6 {[%emt 0:00:00]} 44. a5+ {[%emt 0:00:00]} Ka6 {[%emt 0:00:00]} 45. Re6+ {[%emt 0:00:00]} Kb7 {[%emt 0:00:00]} 46. a6+ {[%emt 0:00:00]} Ka7 {[%emt 0:00:00]} 47. b5 {[%emt 0:00:00]} c5 {[%emt 0:00:00]} 48. Rc6 {[%emt 0:00:00]} 1-0